bitfinex/quotes_ETHUSD_20241030
["timestamp","ask_amount","ask_price","bid_price","bid_amount"]
[1730319363054,1.539,2654.7,2654.0,0.0163]
[1730319363301,5.35378,2655.0,2654.4,0.0063]
[1730319363640,5.35381,2655.0,2654.5,3.81148262]
[1730319363962,1.5873,2655.0,2654.5,7.57859262]
[1730319364260,3.76641,2655.1,2654.5,0.04441262]
[1730319364463,3.76641,2655.1,2654.6,3.76694]
[1730319364667,3.76648,2655.0,2654.7,0.04419773]
[1730319364876,3.76648,2655.0,2654.5,3.76716]
[1730319365054,3.76648,2655.0,2654.8,0.04409048]
[1730319365235,3.76641,2655.1,2654.5,7.53418]
[1730319365580,3.76655,2655.0,2654.6,0.04430499]
[1730319365865,3.76663,2654.9,2654.6,0.04430499]
[1730319366086,8.02248157,2654.9,2654.4,3.77729]
[1730319366234,8.02248157,2654.9,2654.7,0.04419773]
[1730319366430,8.02248157,2654.9,2654.4,3.77359]
[1730319366636,8.02248157,2654.9,2654.4,3.78359]
[1730319366832,1.5873,2655.3,2654.9,3.76659]
[1730319367061,6.76591,2655.4,2654.9,3.76659]
[1730319367246,9.54897157,2655.6,2655.0,3.76641]
[1730319367455,3.76579,2655.5,2655.1,0.04375194]
[1730319368241,9.54897157,2655.6,2655.2,3.76619]
[1730319368242,9.54887157,2655.6,2655.2,3.76619]
[1730319368443,9.54887157,2655.6,2655.3,0.04353751]
[1730319368670,9.54887157,2655.6,2655.2,3.76619]
[1730319368855,3.76584,2655.5,2655.3,0.04353751]
[1730319369053,3.76584,2655.5,2655.0,3.76647]
[1730319369338,3.76584,2655.5,2655.1,0.04375194]
[1730319370152,9.54887157,2655.6,2655.1,3.81006194]
[1730319370661,5.78325157,2655.6,2655.1,0.04375194]
[1730319370866,5.78325157,2655.6,2655.2,3.76611]
[1730319371177,9.54887157,2655.6,2655.3,0.04353751]
[1730319371550,9.54887157,2655.6,2655.2,3.76611]
[1730319371761,5.78325157,2655.6,2655.4,0.0434303]
[1730319371975,3.76591,2655.4,2655.3,0.04353751]
[1730319372184,3.76591,2655.4,2655.0,3.76636]
[1730319372642,3.76631,2655.2,2654.7,3.77319]
[1730319372847,3.76631,2655.2,2654.7,3.76689]
[1730319372848,3.76636,2655.1,2654.7,3.76689]
[1730319373048,5.29304,2655.6,2654.9,0.0063]
[1730319373049,9.54896157,2655.6,2654.9,0.0063]
[1730319373243,3.76577,2655.5,2655.0,3.76636]
[1730319373580,3.7651,2656.0,2655.0,3.76636]
[1730319373581,3.0,2655.8,2655.4,3.76586]
[1730319373775,3.0,2655.8,2655.5,3.76575]
[1730319374474,3.0,2655.8,2655.4,3.7659]
[1730319374883,8.02113157,2655.9,2655.4,3.7659]
[1730319375270,8.02113157,2655.9,2655.3,0.0063]
[1730319375271,3.76536,2655.8,2655.3,0.0063]
[1730319375488,3.76555,2655.7,2655.3,0.0063]
[1730319375869,3.76555,2655.7,2655.2,3.77609]
[1730319376050,4.25585157,2655.6,2655.0,3.77269]
[1730319376246,3.76584,2655.5,2655.0,7.53909]
[1730319376778,3.76584,2655.5,2655.0,3.77269]
[1730319377078,3.76584,2655.5,2655.0,7.53909]
[1730319377287,7.53172,2655.5,2655.0,3.77269]
[1730319377446,3.76592,2655.4,2654.9,0.01]
[1730319377653,3.76619,2655.2,2654.8,3.76666]
[1730319377871,3.76619,2655.2,2654.6,3.76694]
[1730319377872,3.76634,2655.1,2654.6,3.76694]
[1730319378180,5.82495157,2655.3,2654.5,0.0163]
[1730319378181,8.02240157,2655.0,2654.5,0.0163]
[1730319378348,3.76629,2655.2,2654.6,3.76693]
[1730319378550,3.76629,2655.2,2654.5,3.78348]
[1730319378551,3.76656,2655.0,2654.5,3.78348]
[1730319378772,3.76656,2655.0,2654.7,0.04415014]
[1730319378979,3.76656,2655.0,2654.6,0.0442574]
[1730319379181,3.76634,2655.1,2654.8,0.04405435]
[1730319379345,3.76634,2655.1,2654.7,0.0441616]
[1730319379546,3.76649,2655.0,2654.9,0.0439471]
[1730319379742,3.76629,2655.2,2654.8,0.04405435]
[1730319379946,3.76629,2655.2,2654.9,0.0439471]
[1730319380176,3.76641,2655.1,2654.9,0.0439471]
[1730319380383,3.76641,2655.1,2654.6,3.77324]
[1730319380685,3.76652,2655.0,2654.6,3.76703]
[1730319380883,3.76652,2655.0,2654.7,0.0441616]
[1730319381083,4.80585157,2655.0,2654.0,1.5569]
[1730319381293,3.76724,2654.5,2654.1,0.04480528]
[1730319381449,3.76733,2654.4,2654.1,0.04480528]
[1730319381653,3.76753,2654.3,2654.1,0.04480528]
[1730319381973,3.76749,2654.3,2653.9,3.768]
[1730319382290,3.55,2654.6,2654.0,3.76782]
[1730319382494,3.76718,2654.5,2654.0,3.81273261]
[1730319382777,3.0,2654.6,2654.1,3.77397]
[1730319383081,3.0,2654.6,2654.2,3.812312]
[1730319383486,11.78981157,2654.7,2654.2,3.812312]
[1730319383649,8.02283157,2654.7,2654.2,3.812312]
[1730319383850,3.76717,2654.6,2654.2,0.044742]
[1730319384253,3.76726,2654.5,2654.0,3.77786]
[1730319384451,3.76726,2654.5,2654.1,0.0448493]
[1730319385381,4.25585157,2654.7,2654.1,0.0448493]
[1730319385549,3.76705,2654.6,2654.1,3.8125793]
[1730319385968,7.53421,2654.6,2654.1,3.8125793]
[1730319386167,4.25585157,2654.7,2654.1,3.8125793]
[1730319386389,4.25585157,2654.4,2654.1,0.0448493]
[1730319386574,3.76761,2654.2,2654.1,0.0448493]
[1730319386775,3.76799,2654.0,2653.5,3.77851]
[1730319386980,3.76799,2654.0,2653.5,0.01]
[1730319387188,3.76814,2653.9,2653.4,0.0063]
[1730319387384,4.25585157,2654.1,2653.5,3.7686]
[1730319387584,8.02368157,2654.1,2653.6,3.76838]
[1730319388367,8.02368157,2654.1,2653.5,3.7686]
[1730319388368,3.76797,2654.0,2653.5,3.7686]
[1730319388591,3.76806,2653.9,2653.5,3.7686]
[1730319388955,3.76806,2653.9,2653.4,0.01]
[1730319389259,3.76806,2653.9,2653.4,3.77873]
[1730319390106,3.76806,2653.9,2653.4,3.76873]
[1730319390283,7.53683,2653.7,2653.2,3.77901]
[1730319390479,7.53684,2653.7,2653.2,3.76901]
[1730319390689,3.76854,2653.6,2653.1,3.77535]
[1730319390904,3.76868,2653.5,2653.0,5.35]
[1730319391209,8.02451157,2653.5,2653.0,3.76931]
[1730319391369,3.76875,2653.4,2652.9,3.77563]
[1730319391573,3.76889,2653.3,2652.9,3.77563]
[1730319392067,8.02411157,2653.8,2652.9,0.917848]
[1730319392408,8.02362157,2654.1,2653.6,3.76835]
[1730319392814,8.02362157,2654.1,2653.7,0.04530652]
[1730319393109,4.25585157,2654.4,2653.9,3.76796]
[1730319393418,5.39895,2654.6,2654.1,3.76768]
[1730319393574,5.39895,2654.6,2654.0,0.04503186]
[1730319393575,3.7672,2654.5,2654.0,0.04503186]
[1730319393923,3.76718,2654.5,2654.1,0.04491416]
[1730319394084,3.76718,2654.5,2654.1,3.81266416]
[1730319394283,3.76734,2654.4,2654.1,0.04491416]
[1730319394515,3.76761,2654.2,2653.7,3.77452]
[1730319395193,3.76754,2654.3,2653.9,0.01]
[1730319395723,3.76754,2654.3,2654.0,0.04501072]
[1730319395870,0.55,2654.2,2654.0,0.04501072]
[1730319396075,8.57360157,2654.1,2653.5,0.01]
[1730319396300,7.5362,2653.9,2653.6,0.04543967]
[1730319396516,3.76804,2653.9,2653.6,0.04543967]
[1730319398600,3.76826,2653.8,2653.6,0.04543967]
[1730319398974,4.31832,2653.7,2653.6,0.04543967]
[1730319399186,4.31832,2653.7,2653.2,3.76898]
[1730319399412,5.38917,2654.0,2653.6,0.04544863]
[1730319399617,3.76818,2653.8,2653.4,0.01]
[1730319400114,5.38917,2654.0,2653.5,0.04555849]
[1730319400814,4.25585157,2654.1,2653.5,0.04555849]
[1730319400986,0.55,2654.2,2653.7,3.76823]
[1730319401222,4.31768,2654.2,2653.8,3.76818]
[1730319401513,4.31768,2654.2,2653.9,0.04513237]
[1730319402225,4.31768,2654.2,2653.7,3.76822]
[1730319402687,3.768,2654.0,2653.8,0.0452336]
[1730319402893,4.80585157,2653.9,2653.1,1.5618]
[1730319403088,3.76837,2653.7,2653.2,0.04442434]
[1730319403301,3.76837,2653.7,2652.3,0.01]
[1730319403302,3.77017,2652.4,2652.3,0.01]
[1730319403628,3.77017,2652.4,2651.4,3.77151]
[1730319403629,3.77059,2652.1,2651.4,3.77151]
[1730319403920,0.55,2652.0,2651.4,0.0063]
[1730319404081,4.25585157,2652.1,2651.5,3.77144]
[1730319404278,0.55,2652.2,2651.6,0.0063]
[1730319404580,1.6218,2652.6,2652.0,3.7769]
[1730319404787,3.55,2652.8,2652.1,5.35842]
[1730319405082,3.55,2652.8,2652.1,1.5879]
[1730319405277,8.02566157,2652.7,2652.1,1.5879]
[1730319405678,11.79552157,2652.7,2652.1,1.5879]
[1730319405879,8.02566157,2652.7,2652.1,1.5879]
[1730319406112,4.32039,2652.3,2651.8,0.0063]
[1730319406414,1.00691179,2652.7,2652.0,0.0063]
[1730319406415,4.25585157,2652.7,2652.0,0.0063]
[1730319406714,4.31997,2652.6,2652.0,0.0063]
[1730319407016,3.77002,2652.5,2652.0,0.0063]
[1730319407913,0.55,2652.6,2652.0,0.0063]
[1730319408121,8.02561157,2652.7,2652.0,3.77701]
[1730319408286,3.0,2652.8,2652.2,3.77673]
[1730319408287,0.55,2652.8,2652.2,3.77673]
[1730319408486,5.90015157,2653.3,2652.4,0.0063]
[1730319408682,3.76955,2652.9,2652.4,0.0063]
[1730319409791,3.76969,2652.8,2652.4,0.0063]
[1730319410424,3.76955,2652.9,2652.4,0.0063]
[1730319410785,3.76971,2652.8,2652.4,0.0063]
[1730319411094,3.76971,2652.8,2652.5,0.04239263]
[1730319411481,3.76955,2652.9,2652.5,0.04239263]
[1730319411823,3.76954,2652.9,2652.5,0.04239263]
[1730319412126,3.76966,2652.8,2652.5,0.04239263]
[1730319413346,4.31988,2652.6,2652.5,0.04239263]
[1730319413500,4.31988,2652.6,2651.8,1.531]
[1730319413501,3.77062,2652.1,2651.8,1.531]
[1730319413695,3.77062,2652.1,2650.9,3.77224]
[1730319413696,5.90015157,2651.9,2651.2,0.0063]
[1730319413894,5.90015157,2651.9,2650.9,3.7722]
[1730319413895,3.7716,2651.4,2650.9,0.0063]
[1730319414130,3.77195,2651.2,2650.9,0.0063]
[1730319414304,4.25585157,2651.3,2650.8,1.5373]
[1730319415017,3.77195,2651.2,2650.8,1.5373]
[1730319416311,4.25585157,2651.3,2650.8,1.5373]
[1730319416514,4.25585157,2651.3,2650.8,5.3096]
[1730319416749,0.55,2651.5,2651.0,3.77208]
[1730319417450,3.77209,2651.1,2650.7,0.0063]
[1730319417609,4.25585157,2651.3,2650.8,3.77242]
[1730319417946,3.7716,2651.4,2650.8,3.77242]
[1730319418113,4.32151,2651.5,2650.9,3.77852]
[1730319418501,3.77162,2651.4,2650.9,0.0063]
[1730319418707,4.32151,2651.5,2650.9,3.77853]
[1730319419214,4.32151,2651.5,2650.9,3.77858]
[1730319419931,0.55,2651.5,2651.0,3.77213]
[1730319420115,0.55,2651.5,2651.1,3.77201]
[1730319420316,8.02718157,2651.6,2651.1,3.77201]
[1730319420644,4.25585157,2651.6,2651.1,3.77201]
[1730319420944,4.25585157,2651.9,2651.3,0.0063]
[1730319421145,8.02680157,2651.9,2651.3,0.0063]
[1730319421445,4.25585157,2652.4,2651.7,0.0063]
[1730319421609,4.25585157,2652.4,2651.4,0.04093557]
[1730319421610,4.25585157,2651.8,2651.4,0.04093557]
[1730319421818,3.77123,2651.7,2651.2,3.77187]
[1730319422011,3.77123,2651.7,2651.3,0.0063]
[1730319422012,7.54247,2651.7,2651.3,0.0063]
[1730319422346,3.77123,2651.7,2651.3,0.0063]
[1730319423810,4.25585157,2651.5,2651.0,0.0063]
[1730319424040,4.25585157,2651.5,2651.1,3.77201]
[1730319424227,8.02701157,2651.8,2651.2,3.77817]
[1730319424434,0.55,2651.7,2651.3,3.77168]
[1730319425258,3.77132,2651.6,2651.1,3.77194]
[1730319425443,4.32117,2651.7,2651.2,3.77186]
[1730319425846,4.32117,2651.7,2651.3,0.0410681]
[1730319426139,4.32117,2651.7,2651.2,3.77186]
[1730319426320,4.32117,2651.7,2651.4,0.04096328]
[1730319426518,4.32117,2651.7,2651.2,3.77186]
[1730319426816,4.32117,2651.7,2651.3,0.04107081]
[1730319427017,3.77145,2651.5,2651.3,0.04107081]
[1730319427227,4.32117,2651.7,2651.2,3.77186]
[1730319427428,4.32117,2651.7,2651.4,0.04096328]
[1730319427628,8.09241,2651.7,2651.3,0.04107148]
[1730319427847,4.32143,2651.6,2651.5,0.04085644]
[1730319428055,3.77143,2651.6,2651.4,0.04096396]
[1730319428251,4.32143,2651.6,2651.5,0.04085644]
[1730319428574,0.55,2651.7,2651.2,3.77182]
[1730319428865,3.77098,2651.9,2651.2,3.77182]
[1730319428866,4.25585157,2652.1,2651.5,0.04085644]
[1730319429079,4.25585157,2652.7,2651.9,1.5555]
[1730319429243,4.25585157,2652.7,2652.1,3.77059]
[1730319429444,3.77111,2651.8,2651.5,1.5555]
[1730319429646,3.77084,2652.0,2651.5,1.5555]
[1730319429869,7.54171,2652.0,2651.5,5.32693]
[1730319430175,5.37551,2652.3,2651.7,3.77113]
[1730319430334,8.02611157,2652.4,2651.9,3.77075]
[1730319430531,8.02611157,2652.4,2652.0,3.77072]
[1730319430768,3.77073,2652.0,2651.2,3.77179]
[1730319430927,5.37606,2651.9,2651.3,3.7716]
[1730319431132,5.37606,2651.9,2651.3,3.77164]
[1730319431364,5.37606,2651.9,2651.1,1.5618]
[1730319431365,3.77147,2651.5,2651.1,1.5618]
[1730319431745,3.77116,2651.7,2651.1,1.5555]
[1730319431948,3.77116,2651.7,2650.8,0.0063]
[1730319431949,0.55,2651.4,2650.8,0.0063]
[1730319432165,3.77195,2651.2,2650.7,1.5705]
[1730319432536,3.7718,2651.3,2650.7,1.5705]
[1730319432537,3.77202,2651.1,2650.7,1.5705]
[1730319432732,7.54367,2651.3,2650.7,1.5705]
[1730319432970,3.7718,2651.3,2650.8,0.0063]
[1730319433133,3.77155,2651.5,2651.0,3.77207]
[1730319433339,3.77171,2651.4,2650.8,0.0063]
[1730319433771,3.77178,2651.3,2650.8,3.77866]
[1730319434071,3.77178,2651.3,2650.4,3.77294]
[1730319434072,3.77238,2650.9,2650.4,1.6565]
[1730319434234,0.55,2651.1,2650.4,1.6565]
[1730319434575,3.7722,2651.0,2650.5,3.77278]
[1730319434869,4.32202,2651.1,2650.6,3.77266]
[1730319435175,8.02734157,2651.5,2650.8,3.77234]
[1730319435176,3.7717,2651.4,2650.8,3.77234]
[1730319435337,3.7717,2651.4,2650.9,3.77223]
[1730319436048,3.7717,2651.4,2650.9,7.54443]
[1730319436246,3.7711,2651.8,2651.3,3.77173]
[1730319436458,3.0,2651.8,2651.3,3.77173]
[1730319436668,6.77105,2651.8,2651.3,3.77173]
[1730319436844,6.77105,2651.8,2651.3,3.77166]
[1730319437039,3.77126,2651.7,2651.2,0.0063]
[1730319437239,3.77132,2651.6,2651.2,0.0063]
[1730319437748,3.77132,2651.6,2651.2,3.77817]
[1730319438156,3.77116,2651.7,2651.2,3.77817]
[1730319438834,3.77116,2651.7,2651.1,3.77191]
[1730319439038,3.77116,2651.7,2650.1,3.7833]
[1730319439039,3.77181,2651.3,2650.8,3.77244]
[1730319439636,0.55,2651.2,2650.7,5.36397]
[1730319439842,0.55,2651.2,2650.8,3.77242]
[1730319440974,0.55,2651.2,2650.9,0.04021055]
[1730319441148,0.55,2651.2,2650.9,3.81242055]
[1730319441470,0.55,2651.2,2650.9,0.04021055]
[1730319441949,0.55,2651.2,2650.9,3.81250055]
[1730319442139,0.55,2651.4,2650.9,3.81880055]
[1730319442339,8.02740157,2651.5,2650.9,0.04021055]
[1730319442533,3.77173,2651.3,2650.8,3.77236]
[1730319442952,3.77173,2651.3,2650.9,3.81880618]
[1730319443364,3.7721,2651.1,2650.9,0.04023618]
[1730319443556,3.77216,2651.0,2650.5,3.77903]
[1730319443765,3.77231,2650.9,2650.6,0.03927684]
[1730319443968,7.32258,2650.7,2650.6,0.03927684]
[1730319444261,7.32258,2650.7,2650.1,1.6483]
[1730319444262,0.55,2650.6,2650.1,1.6483]
[1730319444472,8.02914157,2650.3,2649.8,5.31307]
[1730319444641,3.77293,2650.5,2650.2,0.03970726]
[1730319444846,3.77305,2650.4,2649.9,0.0063]
[1730319445062,3.77325,2650.3,2649.9,0.0063]
[1730319445555,3.77325,2650.3,2649.9,3.78001]
[1730319445783,3.77303,2650.4,2649.9,3.78001]
[1730319446152,3.77303,2650.4,2649.9,3.77993]
[1730319446359,3.77303,2650.4,2649.8,1.5393]
[1730319446545,3.77303,2650.4,2649.7,0.0063]
[1730319446546,4.32328,2650.3,2649.7,0.0063]
[1730319446750,4.32328,2650.3,2649.7,3.78017]
[1730319446947,4.32328,2650.3,2649.7,7.55406]
[1730319447269,3.77331,2650.2,2649.7,3.78017]
[1730319447667,3.77353,2650.1,2649.7,0.0063]
[1730319447847,3.77331,2650.2,2649.7,3.7803]
[1730319448046,8.02869157,2650.6,2649.7,3.7803]
[1730319448047,3.77282,2650.6,2649.9,0.0063]
[1730319448248,3.77299,2650.5,2650.1,0.0063]
[1730319448656,3.77299,2650.5,2650.0,3.77349]
[1730319449254,3.77274,2650.6,2650.1,0.0063]
[1730319449586,3.77327,2650.3,2649.9,3.77371]
[1730319450360,4.32287,2650.5,2649.9,3.77364]
[1730319450562,3.77284,2650.6,2650.2,3.77328]
[1730319450765,4.5375,2651.0,2650.3,3.77935]
[1730319450970,4.25585157,2651.4,2650.3,3.77935]
[1730319450971,3.77247,2650.8,2650.4,3.77301]
[1730319451154,3.77225,2651.0,2650.4,3.77292]
[1730319451355,3.77225,2651.0,2650.5,3.77287]
[1730319451891,3.77225,2651.0,2650.4,3.77292]
[1730319451892,3.77204,2651.1,2650.4,3.77292]
[1730319452102,1.5375,2651.3,2650.8,0.0063]
[1730319452252,0.64209083,2652.0,2650.8,1.5997]
[1730319452253,3.7716,2651.4,2650.8,1.5997]
[1730319452458,3.7718,2651.3,2650.8,3.77242]
[1730319452857,3.7718,2651.3,2650.9,0.0063]
[1730319453265,3.77183,2651.3,2650.7,3.77245]
[1730319453469,3.77159,2651.4,2650.9,0.0063]
[1730319453682,3.77215,2651.1,2650.6,0.6127901]
[1730319453999,3.77215,2651.1,2650.7,3.77255]
[1730319454000,0.55,2651.1,2650.7,3.77255]
[1730319454165,4.32204,2651.1,2650.7,3.77255]
[1730319454490,3.77222,2651.0,2650.5,9.14519]
[1730319454853,3.77222,2651.0,2650.5,5.37243]
[1730319455197,3.77222,2651.0,2650.5,9.14523]
[1730319455350,3.77222,2651.0,2650.6,3.77268]
[1730319455757,3.77222,2651.0,2650.7,0.03919226]
[1730319455958,0.55,2651.1,2650.7,0.03919226]
[1730319456156,4.32203,2651.1,2650.7,0.03919226]
[1730319456367,4.32203,2651.1,2650.7,3.81175226]
[1730319456583,3.77217,2651.0,2650.7,0.03919226]
[1730319456885,4.32203,2651.1,2650.7,0.03919226]
[1730319457303,3.0,2651.6,2650.8,0.0063]
[1730319457508,4.32179,2651.3,2650.8,3.77874]
[1730319457681,4.32179,2651.3,2650.9,0.0389781]
[1730319458097,5.83966,2651.0,2650.9,0.0389781]
[1730319458295,3.77246,2650.8,2650.3,3.77306]
[1730319458704,3.77246,2650.8,2650.4,0.03828081]
[1730319459205,5.83966,2651.0,2650.6,0.0063]
[1730319459206,3.77216,2651.0,2650.6,0.0063]
[1730319459397,4.32202,2651.1,2650.6,3.77891]
[1730319459571,4.32202,2651.1,2650.7,0.03795804]
[1730319459973,3.77226,2651.0,2650.7,0.03795804]
[1730319460172,3.77232,2650.9,2650.7,0.03795804]
[1730319460488,4.32244,2650.8,2650.7,0.03795804]
[1730319460881,3.77281,2650.6,2650.1,5.31163]
[1730319461504,3.77281,2650.6,2650.2,3.77328]
[1730319464481,3.77294,2650.5,2650.1,1.5383]
[1730319464689,0.55,2650.8,2650.1,1.5383]
[1730319464890,3.7731,2650.4,2650.1,1.5383]
[1730319465913,1.6077,2650.7,2650.3,3.77945]
[1730319465914,5.38029,2650.7,2650.3,3.77945]
[1730319466097,3.77259,2650.7,2650.3,0.0063]
[1730319467119,3.77259,2650.7,2650.2,3.77321]
[1730319467930,3.77259,2650.7,2650.3,0.0063]
[1730319468219,4.32251,2650.8,2650.3,3.77941]
[1730319470120,3.0,2651.2,2650.6,3.77262]
[1730319470330,3.77203,2651.1,2650.6,3.77271]
[1730319470502,3.77203,2651.1,2650.6,7.54532]
[1730319470699,3.77161,2651.4,2650.8,3.77864]
[1730319470936,1.5095,2651.7,2651.1,0.0063]
[1730319471089,3.77109,2651.8,2651.4,3.77157]
[1730319471446,3.77109,2651.8,2651.5,0.03711061]
[1730319472297,3.77118,2651.7,2651.5,0.03711061]
[1730319472707,3.77118,2651.7,2651.3,3.77803]
[1730319472904,3.77118,2651.7,2651.6,0.0370031]
[1730319473208,4.25585157,2652.3,2651.7,0.0063]
[1730319473209,3.77067,2652.1,2651.7,0.0063]
[1730319473414,5.41857,2652.3,2651.7,0.0063]
[1730319473415,3.77049,2652.2,2651.7,3.77739]
[1730319473728,3.77049,2652.2,2651.8,0.03677225]
[1730319474231,3.77049,2652.2,2651.9,0.03666477]
[1730319474596,3.77049,2652.2,2651.7,3.77738]
[1730319474796,3.77049,2652.2,2651.8,0.03677225]
[1730319475135,3.77049,2652.2,2651.7,3.77738]
[1730319475331,3.77049,2652.2,2651.9,0.03666477]
[1730319475496,3.77049,2652.2,2651.8,0.036759]
[1730319475850,3.77049,2652.2,2651.7,3.77738]
[1730319475851,3.77049,2652.2,2651.9,0.03665151]
[1730319476192,3.77064,2652.1,2651.7,3.77738]
[1730319476468,3.77064,2652.1,2651.8,0.036759]
[1730319476917,3.77064,2652.1,2651.7,3.77738]
[1730319477121,3.77064,2652.1,2651.9,0.03665151]
[1730319477328,7.54108,2652.2,2651.8,0.036759]
[1730319477533,3.77049,2652.2,2652.0,0.03654403]
[1730319477706,3.77069,2652.1,2651.9,0.03665151]
[1730319477897,3.77069,2652.1,2651.7,0.0063]
[1730319478535,3.7708,2652.0,2651.7,0.0063]
[1730319481001,0.55,2651.7,2650.9,1.5865]
[1730319481227,3.77196,2651.2,2650.9,1.5928]
[1730319481535,3.77167,2651.4,2650.9,3.77858]
[1730319481736,4.32182,2651.3,2650.9,0.0063]
[1730319482544,0.55,2651.3,2650.9,3.77859]
[1730319482748,4.32182,2651.3,2650.9,0.0063]
[1730319482946,5.36125,2651.8,2650.9,0.0063]
[1730319482947,0.55,2651.5,2651.1,1.5795]
[1730319483506,3.77209,2651.1,2650.7,1.5838]
[1730319483660,3.77222,2651.0,2650.5,3.77903]
[1730319483845,3.77209,2651.1,2650.4,1.5838]
[1730319483846,3.77252,2650.8,2650.4,1.5838]
[1730319484029,3.77267,2650.7,2650.4,1.5838]
[1730319484230,3.77252,2650.8,2650.2,0.0063]
[1730319484231,3.77285,2650.6,2650.2,0.0063]
[1730319484446,3.77217,2651.0,2650.2,0.0063]
[1730319484447,3.77237,2650.9,2650.3,3.77309]
[1730319484646,6.78135,2651.6,2650.6,0.0063]
[1730319484953,6.77142,2651.6,2651.0,3.77845]
[1730319485113,3.0,2651.4,2651.0,7.55052]
[1730319485312,6.77142,2651.6,2651.0,7.55052]
[1730319485313,3.77131,2651.6,2651.1,3.77193]
[1730319485745,3.77131,2651.6,2651.0,0.0063]
[1730319485746,3.77159,2651.4,2651.0,0.0063]
[1730319485948,3.77159,2651.4,2651.2,0.03738564]
[1730319485949,3.7718,2651.3,2651.2,0.03738564]
[1730319486149,3.7718,2651.3,2651.1,0.03749318]
[1730319486456,3.7718,2651.3,2651.2,0.03738952]
[1730319486747,3.77139,2651.6,2651.0,0.0063]
[1730319486951,3.7716,2651.4,2651.2,0.03738952]
[1730319487157,3.7716,2651.4,2651.1,0.03749092]
[1730319487367,0.55,2651.5,2651.0,0.0063]
[1730319487368,0.55,2651.5,2651.3,0.03727584]
[1730319487553,0.55,2651.5,2651.2,0.0373837]
[1730319487753,0.55,2651.5,2651.4,0.03716863]
[1730319487954,0.55,2651.5,2651.3,0.03727616]
[1730319488132,4.32145,2651.5,2651.4,0.03716863]
[1730319488533,4.32145,2651.5,2651.0,3.77845]
[1730319488534,3.77163,2651.4,2651.0,3.77845]
[1730319488832,3.77176,2651.3,2651.0,0.0063]
[1730319489027,3.77273,2650.6,2650.1,1.6093]
[1730319489227,8.03722588,2651.1,2649.8,1.6093]
[1730319489228,3.77337,2650.2,2649.8,1.6093]
[1730319489482,3.77358,2650.0,2649.9,4.0]
[1730319489627,3.77345,2650.1,2649.8,0.0063]
[1730319489628,7.54698,2650.1,2649.8,0.0063]
[1730319489835,3.77362,2650.0,2649.8,0.0063]
[1730319490055,3.77343,2650.2,2649.8,0.0063]
[1730319490266,3.77303,2650.4,2649.9,3.77365]
[1730319491011,3.77338,2650.2,2649.6,3.78039]
[1730319491161,3.77366,2650.0,2649.5,1.5163]
[1730319491476,7.54738,2650.0,2649.6,0.0063]
[1730319491656,3.77366,2650.0,2649.5,1.5163]
[1730319491973,3.77366,2650.0,2649.4,0.0063]
[1730319491974,3.77393,2649.8,2649.4,0.0063]
[1730319492133,3.77427,2649.6,2649.2,1.6214]
[1730319492473,0.55,2649.7,2649.2,0.0063]
[1730319492766,3.77415,2649.6,2649.2,0.0063]
[1730319493647,3.77415,2649.6,2649.1,3.77477]
[1730319493889,4.32372,2649.9,2649.3,3.77446]
[1730319494094,8.09755,2649.9,2649.4,3.77443]
[1730319494290,0.55,2649.7,2649.3,3.77446]
[1730319494990,4.32401,2649.7,2649.2,3.78099]
[1730319496096,0.55,2649.7,2649.3,3.77456]
[1730319496399,1.5335,2650.4,2649.9,0.0063]
[1730319496702,3.77331,2650.2,2649.9,0.0063]
[1730319496848,5.30653,2650.4,2649.9,0.0063]
[1730319497055,3.77315,2650.3,2649.9,0.0063]
[1730319498090,3.77337,2650.2,2649.9,0.0063]
[1730319498933,3.77344,2650.1,2649.9,0.0063]
[1730319499305,3.7734,2650.2,2649.9,0.0063]
[1730319499637,3.77315,2650.3,2649.9,0.0063]
[1730319499944,3.7733,2650.2,2649.9,0.0063]
[1730319500654,0.55,2649.8,2649.3,0.0063]
[1730319500804,3.77442,2649.5,2649.2,1.5467]
[1730319500994,3.77444,2649.4,2649.0,3.77493]
[1730319501195,3.77437,2649.5,2649.0,3.78123]
[1730319501441,3.77451,2649.4,2649.0,0.0063]
[1730319501641,3.77451,2649.4,2648.9,5.32814]
[1730319501839,3.77437,2649.5,2649.0,3.78128]
[1730319502023,3.77411,2649.7,2649.3,0.0063]
[1730319502377,3.77417,2649.6,2649.3,0.0063]
[1730319502500,3.77411,2649.7,2649.3,0.0063]
[1730319502901,3.77409,2649.7,2649.3,0.0063]
[1730319503500,7.54822,2649.7,2649.3,0.0063]
[1730319503719,3.77409,2649.7,2649.3,0.0063]
[1730319504526,3.77429,2649.6,2649.0,4.314008]
[1730319504733,3.77433,2649.5,2649.0,8.088928]
[1730319504952,3.77433,2649.5,2649.2,0.0063]
[1730319505312,4.32414,2649.7,2649.2,0.0063]
[1730319505916,4.32414,2649.7,2649.2,3.781]
[1730319506132,3.77374,2649.9,2649.5,3.77423]
[1730319506531,3.77388,2649.8,2649.4,3.78066]
[1730319506763,3.77374,2649.9,2649.4,3.78066]
[1730319507141,3.7736,2650.0,2649.4,3.78065]
[1730319507340,0.55,2650.0,2649.5,1.5003]
[1730319507557,0.55,2650.0,2649.6,3.78034]
[1730319507974,3.77352,2650.1,2649.6,3.78034]
[1730319508157,3.77316,2650.3,2649.9,3.77362]
[1730319508357,4.6406,2650.4,2649.9,3.77362]
[1730319508358,3.77302,2650.4,2649.9,3.77362]
[1730319508574,3.77317,2650.3,2649.8,3.78015]
[1730319508774,3.77344,2650.1,2649.8,0.0063]
[1730319509273,3.77317,2650.3,2649.8,0.0063]